[Event "Late-Titled-Tuesday-Blitz-May-28-2024"]
[Site "Chess.com"]
[Date "2024.05.28"]
[Round "2"]
[White "northridgehawk"]
[Black "zajka-molotok"]
[Result "0-1"]
[WhiteElo "2349"]
[BlackElo "2544"]
[TimeControl "180+1"]
[EndTime "14:19:23 PDT"]
[Termination "zajka-molotok won by checkmate"]

1. e4 {[%clk 0:02:58.7]} 1... c5 {[%clk 0:02:59.3]} 2. Nf3 {[%clk 0:02:58.5]}
2... Nc6 {[%clk 0:02:59.3]} 3. d4 {[%clk 0:02:58.7]} 3... cxd4 {[%clk
0:02:59.3]} 4. c3 {[%clk 0:02:59.3]} 4... dxc3 {[%clk 0:02:56.4]} 5. Nxc3 {[%clk
0:03:00.2]} 5... d6 {[%clk 0:02:56.1]} 6. Bc4 {[%clk 0:03:00.2]} 6... e6 {[%clk
0:02:55.7]} 7. O-O {[%clk 0:02:59.7]} 7... Nf6 {[%clk 0:02:54]} 8. Qe2 {[%clk
0:03:00.1]} 8... Be7 {[%clk 0:02:52.7]} 9. Rd1 {[%clk 0:03:00]} 9... Qc7 {[%clk
0:02:41.2]} 10. Nb5 {[%clk 0:02:59.5]} 10... Qb8 {[%clk 0:02:41]} 11. e5 {[%clk
0:03:00]} 11... dxe5 {[%clk 0:02:29]} 12. Nxe5 {[%clk 0:02:55.6]} 12... Nxe5
{[%clk 0:02:28]} 13. Bf4 {[%clk 0:02:55.7]} 13... Nfd7 {[%clk 0:02:23.9]} 14.
Rxd7 {[%clk 0:02:55.4]} 14... Bxd7 {[%clk 0:02:14]} 15. Bxe5 {[%clk 0:02:55.1]}
15... Qd8 {[%clk 0:02:11.3]} 16. Nc7+ {[%clk 0:02:55]} 16... Kf8 {[%clk
0:02:11.4]} 17. Nxa8 {[%clk 0:02:53.3]} 17... Qxa8 {[%clk 0:02:12.3]} 18. Rd1
{[%clk 0:02:52.6]} 18... Bc6 {[%clk 0:02:12.2]} 19. Qg4 {[%clk 0:02:49.8]} 19...
Bf6 {[%clk 0:02:06.9]} 20. Bxf6 {[%clk 0:02:38.5]} 20... gxf6 {[%clk 0:02:07.8]}
21. Qf4 {[%clk 0:02:39.4]} 21... Kg7 {[%clk 0:02:03.7]} 22. Rd3 {[%clk 0:02:38]}
22... Rd8 {[%clk 0:01:48.3]} 23. Rg3+ {[%clk 0:02:32.6]} 23... Kf8 {[%clk
0:01:42.1]} 24. h4 {[%clk 0:02:18]} 24... Rd1+ {[%clk 0:01:37]} 25. Kh2 {[%clk
0:02:18.1]} 25... Ke7 {[%clk 0:01:35.2]} 26. Rg7 {[%clk 0:01:55.9]} 26... Qd8
{[%clk 0:01:23.8]} 27. Qg4 {[%clk 0:01:50.1]} 27... Qd6+ {[%clk 0:01:20.2]} 28.
f4 {[%clk 0:01:50]} 28... Rd2 {[%clk 0:01:14.3]} 29. Be2 {[%clk 0:01:34.9]}
29... h5 {[%clk 0:01:00.2]} 30. Qxh5 {[%clk 0:01:21.3]} 30... Qxf4+ {[%clk
0:00:59.4]} 31. Kh1 {[%clk 0:01:20.1]} 31... Be8 {[%clk 0:00:49.5]} 32. Qc5+
{[%clk 0:01:19.9]} 32... Kd8 {[%clk 0:00:39.9]} 33. Rg4 {[%clk 0:01:12.8]} 33...
Qc7 {[%clk 0:00:29.4]} 34. Rd4+ {[%clk 0:01:08.6]} 34... Rxd4 {[%clk 0:00:28.8]}
35. Qxd4+ {[%clk 0:01:09.5]} 35... Ke7 {[%clk 0:00:29.1]} 36. h5 {[%clk
0:01:10.4]} 36... Qc1+ {[%clk 0:00:22.5]} 37. Kh2 {[%clk 0:01:09]} 37... Bc6
{[%clk 0:00:22.5]} 38. Qc3 {[%clk 0:00:56.9]} 38... Qf4+ {[%clk 0:00:21.7]} 39.
Qg3 {[%clk 0:00:56.9]} 39... Qd2 {[%clk 0:00:19.9]} 40. Qc7+ {[%clk 0:00:54.2]}
40... Kf8 {[%clk 0:00:19.6]} 41. Bf1 {[%clk 0:00:43.3]} 41... Qg5 {[%clk
0:00:12]} 42. Qd8+ {[%clk 0:00:34.1]} 42... Kg7 {[%clk 0:00:12.1]} 43. Qd1
{[%clk 0:00:35]} 43... Qf4+ {[%clk 0:00:10.9]} 44. Kg1 {[%clk 0:00:34.6]} 44...
Qe3+ {[%clk 0:00:10.5]} 45. Kh1 {[%clk 0:00:35]} 45... Be4 {[%clk 0:00:09.5]}
46. Qg4+ {[%clk 0:00:30.7]} 46... Kh6 {[%clk 0:00:09.4]} 47. Qh4 {[%clk
0:00:26.9]} 47... Kg7 {[%clk 0:00:06.9]} 48. Qh2 {[%clk 0:00:19.1]} 48... Bd5
{[%clk 0:00:06.8]} 49. Qh4 {[%clk 0:00:18.7]} 49... Qc1 {[%clk 0:00:06.5]} 50.
Kg1 {[%clk 0:00:18.9]} 50... Qe3+ {[%clk 0:00:06.1]} 51. Kh1 {[%clk 0:00:19.1]}
51... a6 {[%clk 0:00:04.3]} 52. b4 {[%clk 0:00:17.9]} 52... b5 {[%clk
0:00:04.4]} 53. a4 {[%clk 0:00:18]} 53... bxa4 {[%clk 0:00:04.2]} 54. Bxa6
{[%clk 0:00:17.8]} 54... a3 {[%clk 0:00:04.2]} 55. h6+ {[%clk 0:00:15.8]} 55...
Qxh6 {[%clk 0:00:03.5]} 56. Qxh6+ {[%clk 0:00:16.1]} 56... Kxh6 {[%clk
0:00:04.4]} 57. b5 {[%clk 0:00:16.5]} 57... a2 {[%clk 0:00:04.7]} 58. b6 {[%clk
0:00:17.2]} 58... a1=Q+ {[%clk 0:00:05.5]} 59. Kh2 {[%clk 0:00:18.1]} 59... Qxa6
{[%clk 0:00:06.1]} 60. b7 {[%clk 0:00:18.1]} 60... Qxb7 {[%clk 0:00:07]} 61. Kh3
{[%clk 0:00:18.7]} 61... Bxg2+ {[%clk 0:00:06.8]} 62. Kh4 {[%clk 0:00:19.6]}
62... Bc6 {[%clk 0:00:07.7]} 63. Kg3 {[%clk 0:00:20.1]} 63... Qb3+ {[%clk
0:00:07.9]} 64. Kf4 {[%clk 0:00:21]} 64... Qc4+ {[%clk 0:00:08.8]} 65. Ke3
{[%clk 0:00:21.9]} 65... Qd5 {[%clk 0:00:08.9]} 66. Kf2 {[%clk 0:00:22.8]} 66...
Qf3+ {[%clk 0:00:08.9]} 67. Ke1 {[%clk 0:00:23.5]} 67... Qg2 {[%clk 0:00:09.2]}
68. Kd1 {[%clk 0:00:24]} 68... f5 {[%clk 0:00:10]} 69. Kc1 {[%clk 0:00:24.9]}
69... f4 {[%clk 0:00:10.9]} 70. Kb1 {[%clk 0:00:25.7]} 70... f3 {[%clk
0:00:11.7]} 71. Kc1 {[%clk 0:00:26.5]} 71... f2 {[%clk 0:00:12.4]} 72. Kd1
{[%clk 0:00:27.4]} 72... f1=Q# {[%clk 0:00:12.8]} 0-1

[Event "Late-Titled-Tuesday-Blitz-May-28-2024"]
[Site "Chess.com"]
[Date "2024.05.28"]
[Round "2"]
[White "KirAk47"]
[Black "Mikhail_Bryakin"]
[Result "1/2-1/2"]
[WhiteElo "2559"]
[BlackElo "2847"]
[TimeControl "180+1"]
[EndTime "14:19:25 PDT"]
[Termination "Game drawn - insufficient material"]

1. e4 {[%clk 0:03:00.9]} 1... c5 {[%clk 0:02:53]} 2. Nf3 {[%clk 0:02:59.9]} 2...
Nc6 {[%clk 0:02:52]} 3. Bb5 {[%clk 0:02:53.5]} 3... Nf6 {[%clk 0:02:47.5]} 4. e5
{[%clk 0:02:41.8]} 4... Nd5 {[%clk 0:02:47.3]} 5. Nc3 {[%clk 0:02:35.5]} 5...
Nc7 {[%clk 0:02:46.3]} 6. Bxc6 {[%clk 0:02:30.2]} 6... dxc6 {[%clk 0:02:45.9]}
7. h3 {[%clk 0:02:30.6]} 7... g6 {[%clk 0:02:44.8]} 8. d3 {[%clk 0:02:29.6]}
8... Bg7 {[%clk 0:02:45.3]} 9. Be3 {[%clk 0:02:30]} 9... Ne6 {[%clk 0:02:44]}
10. Qd2 {[%clk 0:02:29.9]} 10... O-O {[%clk 0:02:43.7]} 11. Bh6 {[%clk
0:02:29.6]} 11... Nd4 {[%clk 0:02:42.1]} 12. Nxd4 {[%clk 0:02:21.4]} 12... Qxd4
{[%clk 0:02:31.8]} 13. Bxg7 {[%clk 0:02:21.3]} 13... Kxg7 {[%clk 0:02:29.3]} 14.
f4 {[%clk 0:01:46.6]} 14... c4 {[%clk 0:02:18.5]} 15. dxc4 {[%clk 0:01:36.4]}
15... Qxc4 {[%clk 0:02:17.3]} 16. O-O-O {[%clk 0:01:28.1]} 16... Be6 {[%clk
0:02:13.7]} 17. Qd4 {[%clk 0:01:26.2]} 17... Qxd4 {[%clk 0:02:07.9]} 18. Rxd4
{[%clk 0:01:27.1]} 18... Rfd8 {[%clk 0:02:08.1]} 19. Rhd1 {[%clk 0:01:27.4]}
19... Rxd4 {[%clk 0:02:06.3]} 20. Rxd4 {[%clk 0:01:28.3]} 20... f6 {[%clk
0:02:06.7]} 21. exf6+ {[%clk 0:01:26.9]} 21... exf6 {[%clk 0:02:05.5]} 22. Kd2
{[%clk 0:01:17.2]} 22... Kf7 {[%clk 0:02:04.4]} 23. g4 {[%clk 0:01:12.3]} 23...
b6 {[%clk 0:01:59.9]} 24. Ke3 {[%clk 0:01:11.1]} 24... c5 {[%clk 0:01:59.2]} 25.
Rd2 {[%clk 0:01:10.9]} 25... Ke7 {[%clk 0:01:53.3]} 26. a3 {[%clk 0:01:08.5]}
26... a6 {[%clk 0:01:51.6]} 27. Ne4 {[%clk 0:01:03.7]} 27... h6 {[%clk
0:01:45.2]} 28. g5 {[%clk 0:00:49.6]} 28... hxg5 {[%clk 0:01:39.2]} 29. fxg5
{[%clk 0:00:50.2]} 29... fxg5 {[%clk 0:01:32.7]} 30. Nxg5 {[%clk 0:00:50]} 30...
Bf5 {[%clk 0:01:32.8]} 31. Kf4 {[%clk 0:00:45.9]} 31... Rh8 {[%clk 0:01:32.8]}
32. Kg3 {[%clk 0:00:39.8]} 32... b5 {[%clk 0:01:28.9]} 33. h4 {[%clk 0:00:39.8]}
33... a5 {[%clk 0:01:28.2]} 34. Rd5 {[%clk 0:00:39.5]} 34... Rc8 {[%clk
0:01:27.1]} 35. c3 {[%clk 0:00:39]} 35... b4 {[%clk 0:01:25.3]} 36. axb4 {[%clk
0:00:38.4]} 36... axb4 {[%clk 0:01:26.2]} 37. Kf4 {[%clk 0:00:36.6]} 37... Bb1
{[%clk 0:01:22.3]} 38. Ke5 {[%clk 0:00:34]} 38... Rh8 {[%clk 0:01:18.3]} 39.
Rxc5 {[%clk 0:00:31.2]} 39... Rxh4 {[%clk 0:01:17]} 40. Rc7+ {[%clk 0:00:31.2]}
40... Ke8 {[%clk 0:01:16.2]} 41. c4 {[%clk 0:00:27.8]} 41... Rg4 {[%clk
0:01:12.8]} 42. Kf6 {[%clk 0:00:27.1]} 42... Rf4+ {[%clk 0:01:11.9]} 43. Ke6
{[%clk 0:00:22.1]} 43... Bf5+ {[%clk 0:01:11.3]} 44. Ke5 {[%clk 0:00:21.4]}
44... Rf2 {[%clk 0:01:11.4]} 45. c5 {[%clk 0:00:19.7]} 45... Rxb2 {[%clk
0:01:10.2]} 46. Nh7 {[%clk 0:00:20.1]} 46... Kd8 {[%clk 0:01:09.8]} 47. Rb7
{[%clk 0:00:19.1]} 47... Kc8 {[%clk 0:01:07.9]} 48. c6 {[%clk 0:00:18.2]} 48...
Re2+ {[%clk 0:01:03.7]} 49. Kd6 {[%clk 0:00:17.5]} 49... Rd2+ {[%clk 0:01:04]}
50. Ke5 {[%clk 0:00:15.8]} 50... Re2+ {[%clk 0:01:01.6]} 51. Kd5 {[%clk
0:00:13.3]} 51... Be4+ {[%clk 0:01:01.4]} 52. Kd6 {[%clk 0:00:12.8]} 52... Rd2+
{[%clk 0:00:55.8]} 53. Ke5 {[%clk 0:00:12.8]} 53... Bxc6 {[%clk 0:00:49.6]} 54.
Rxb4 {[%clk 0:00:13.4]} 54... Rg2 {[%clk 0:00:48.5]} 55. Nf6 {[%clk 0:00:12]}
55... Kd8 {[%clk 0:00:46.7]} 56. Rg4 {[%clk 0:00:11.8]} 56... Re2+ {[%clk
0:00:44.1]} 57. Kd6 {[%clk 0:00:12.4]} 57... Bf3 {[%clk 0:00:39.1]} 58. Rxg6
{[%clk 0:00:12.2]} 58... Rd2+ {[%clk 0:00:39.7]} 59. Ke5 {[%clk 0:00:12.1]}
59... Ke7 {[%clk 0:00:39.8]} 60. Rg7+ {[%clk 0:00:12.2]} 60... Kf8 {[%clk
0:00:39.7]} 61. Rd7 {[%clk 0:00:11.6]} 61... Ra2 {[%clk 0:00:39.1]} 62. Ke6
{[%clk 0:00:09.6]} 62... Ra6+ {[%clk 0:00:38]} 63. Kf5 {[%clk 0:00:10.1]} 63...
Be2 {[%clk 0:00:36.5]} 64. Rc7 {[%clk 0:00:10]} 64... Bd3+ {[%clk 0:00:35.8]}
65. Ke5 {[%clk 0:00:10.4]} 65... Ra5+ {[%clk 0:00:34.3]} 66. Ke6 {[%clk
0:00:10.4]} 66... Ra6+ {[%clk 0:00:34.5]} 67. Ke5 {[%clk 0:00:10.8]} 67... Bb1
{[%clk 0:00:34.3]} 68. Nd5 {[%clk 0:00:08.6]} 68... Ra5 {[%clk 0:00:33.2]} 69.
Kd6 {[%clk 0:00:08.2]} 69... Ba2 {[%clk 0:00:32]} 70. Nf6 {[%clk 0:00:07.6]}
70... Ra6+ {[%clk 0:00:31.5]} 71. Ke5 {[%clk 0:00:08.3]} 71... Ra5+ {[%clk
0:00:31.6]} 72. Kd6 {[%clk 0:00:08.4]} 72... Rf5 {[%clk 0:00:32]} 73. Nd7+
{[%clk 0:00:08.2]} 73... Kg8 {[%clk 0:00:32.1]} 74. Ne5 {[%clk 0:00:08.6]} 74...
Rf1 {[%clk 0:00:32]} 75. Rc8+ {[%clk 0:00:08.4]} 75... Kg7 {[%clk 0:00:32]} 76.
Rc2 {[%clk 0:00:09.3]} 76... Bb1 {[%clk 0:00:31.5]} 77. Rg2+ {[%clk 0:00:09.7]}
77... Kf6 {[%clk 0:00:30.9]} 78. Rf2+ {[%clk 0:00:10]} 78... Rxf2 {[%clk
0:00:29.5]} 79. Ng4+ {[%clk 0:00:10.9]} 79... Kg5 {[%clk 0:00:29.7]} 80. Nxf2
{[%clk 0:00:11.8]} 1/2-1/2

[Event "Late-Titled-Tuesday-Blitz-May-28-2024"]
[Site "Chess.com"]
[Date "2024.05.28"]
[Round "2"]
[White "NeverGiveUppp"]
[Black "GMBenjaminFinegold"]
[Result "1-0"]
[WhiteElo "2585"]
[BlackElo "2753"]
[TimeControl "180+1"]
[EndTime "14:19:30 PDT"]
[Termination "NeverGiveUppp won by checkmate"]

1. e4 {[%clk 0:03:00.9]} 1... c5 {[%clk 0:02:59.9]} 2. Nf3 {[%clk 0:03:00.5]}
2... Nc6 {[%clk 0:03:00]} 3. Bb5 {[%clk 0:03:00.5]} 3... e6 {[%clk 0:02:59]} 4.
Bxc6 {[%clk 0:02:56.9]} 4... bxc6 {[%clk 0:02:59.9]} 5. O-O {[%clk 0:02:56.6]}
5... Ne7 {[%clk 0:03:00.2]} 6. d3 {[%clk 0:02:48]} 6... Ng6 {[%clk 0:03:00.2]}
7. Ng5 {[%clk 0:02:46.2]} 7... h6 {[%clk 0:02:57]} 8. Nh3 {[%clk 0:02:39.9]}
8... e5 {[%clk 0:02:56.6]} 9. f4 {[%clk 0:02:39.8]} 9... exf4 {[%clk 0:02:56.9]}
10. Nxf4 {[%clk 0:02:39]} 10... Nxf4 {[%clk 0:02:54.2]} 11. Bxf4 {[%clk
0:02:39.9]} 11... Be7 {[%clk 0:02:54]} 12. Qh5 {[%clk 0:02:35.8]} 12... O-O
{[%clk 0:02:49.3]} 13. Nd2 {[%clk 0:02:29.8]} 13... d5 {[%clk 0:02:40.1]} 14. e5
{[%clk 0:02:27]} 14... Bg5 {[%clk 0:02:30.4]} 15. Bxg5 {[%clk 0:02:04.5]} 15...
Qxg5 {[%clk 0:02:29.8]} 16. Qxg5 {[%clk 0:02:03.8]} 16... hxg5 {[%clk
0:02:30.7]} 17. Nb3 {[%clk 0:02:00.5]} 17... c4 {[%clk 0:02:29.9]} 18. Nc5
{[%clk 0:01:54.6]} 18... cxd3 {[%clk 0:02:24.7]} 19. cxd3 {[%clk 0:01:53.8]}
19... Rb8 {[%clk 0:02:19.7]} 20. b3 {[%clk 0:01:50.5]} 20... a5 {[%clk
0:02:12.4]} 21. d4 {[%clk 0:01:48.7]} 21... Rb4 {[%clk 0:02:03.9]} 22. Rfd1
{[%clk 0:01:41.8]} 22... f6 {[%clk 0:02:02.7]} 23. a3 {[%clk 0:01:38.8]} 23...
Rb8 {[%clk 0:01:59.6]} 24. e6 {[%clk 0:01:38]} 24... Re8 {[%clk 0:01:55.9]} 25.
Re1 {[%clk 0:01:38]} 25... Re7 {[%clk 0:01:56.2]} 26. Re3 {[%clk 0:01:32.7]}
26... g6 {[%clk 0:01:45.2]} 27. Kf2 {[%clk 0:01:32.5]} 27... Kg7 {[%clk
0:01:45.2]} 28. b4 {[%clk 0:01:26.8]} 28... axb4 {[%clk 0:01:43]} 29. a4 {[%clk
0:01:27.3]} 29... f5 {[%clk 0:01:41.6]} 30. a5 {[%clk 0:01:26.3]} 30... Kf6
{[%clk 0:01:41.1]} 31. a6 {[%clk 0:01:20.7]} 31... Ra8 {[%clk 0:01:40.8]} 32. a7
{[%clk 0:01:14.9]} 32... b3 {[%clk 0:01:31.4]} 33. Rxb3 {[%clk 0:01:10.9]} 33...
Rexa7 {[%clk 0:01:27.9]} 34. Re1 {[%clk 0:00:58.8]} 34... Re7 {[%clk 0:01:23.6]}
35. Rb6 {[%clk 0:00:59.3]} 35... Ra2+ {[%clk 0:01:23.6]} 36. Kg1 {[%clk
0:00:57.3]} 36... Raa7 {[%clk 0:01:02.5]} 37. Rxc6 {[%clk 0:00:57.3]} 37... Bb7
{[%clk 0:01:00.8]} 38. Nd7+ {[%clk 0:00:49.4]} 38... Kg7 {[%clk 0:00:58.9]} 39.
Rc7 {[%clk 0:00:48.1]} 39... g4 {[%clk 0:00:51.6]} 40. Rb1 {[%clk 0:00:46.4]}
40... Kh6 {[%clk 0:00:47.3]} 41. Rcxb7 {[%clk 0:00:42.2]} 41... Rxb7 {[%clk
0:00:48.2]} 42. Rxb7 {[%clk 0:00:41.6]} 42... Rxe6 {[%clk 0:00:49]} 43. Kf2
{[%clk 0:00:37.9]} 43... Re4 {[%clk 0:00:48.1]} 44. Nf8 {[%clk 0:00:24.2]} 44...
Kg5 {[%clk 0:00:45.9]} 45. Rd7 {[%clk 0:00:19.1]} 45... Kf6 {[%clk 0:00:41.3]}
46. Rxd5 {[%clk 0:00:19.5]} 46... Kf7 {[%clk 0:00:36.9]} 47. Rd8 {[%clk
0:00:19.6]} 47... f4 {[%clk 0:00:35.3]} 48. d5 {[%clk 0:00:18.5]} 48... Rd4
{[%clk 0:00:31.4]} 49. Ne6 {[%clk 0:00:18.5]} 49... Rd2+ {[%clk 0:00:31.5]} 50.
Kf1 {[%clk 0:00:18.5]} 50... g3 {[%clk 0:00:31.5]} 51. hxg3 {[%clk 0:00:17.1]}
51... fxg3 {[%clk 0:00:32.4]} 52. Ng5+ {[%clk 0:00:17.2]} 52... Ke7 {[%clk
0:00:31.6]} 53. Rg8 {[%clk 0:00:16.2]} 53... Rxd5 {[%clk 0:00:31.2]} 54. Rxg6
{[%clk 0:00:16.9]} 54... Rf5+ {[%clk 0:00:30]} 55. Nf3 {[%clk 0:00:17.2]} 55...
Kf7 {[%clk 0:00:29.1]} 56. Rxg3 {[%clk 0:00:17.8]} 56... Ra5 {[%clk 0:00:29.7]}
57. Rg5 {[%clk 0:00:17.9]} 57... Ra1+ {[%clk 0:00:30.6]} 58. Kf2 {[%clk
0:00:18.1]} 58... Kf6 {[%clk 0:00:31.5]} 59. Rb5 {[%clk 0:00:17.5]} 59... Ra2+
{[%clk 0:00:32.4]} 60. Kg3 {[%clk 0:00:17.4]} 60... Ra3 {[%clk 0:00:33.3]} 61.
Rb6+ {[%clk 0:00:17.2]} 61... Kf5 {[%clk 0:00:33.6]} 62. Rb5+ {[%clk 0:00:16.6]}
62... Kf6 {[%clk 0:00:34]} 63. Kf4 {[%clk 0:00:16.9]} 63... Ke7 {[%clk
0:00:34.1]} 64. g4 {[%clk 0:00:16.3]} 64... Ra4+ {[%clk 0:00:34.7]} 65. Kf5
{[%clk 0:00:16.4]} 65... Kf7 {[%clk 0:00:35.6]} 66. Ne5+ {[%clk 0:00:16]} 66...
Ke7 {[%clk 0:00:36]} 67. Rb7+ {[%clk 0:00:16.5]} 67... Kd6 {[%clk 0:00:35.6]}
68. Rd7+ {[%clk 0:00:17.2]} 68... Kc5 {[%clk 0:00:35.5]} 69. Rd1 {[%clk
0:00:18.1]} 69... Ra2 {[%clk 0:00:35.2]} 70. g5 {[%clk 0:00:18.6]} 70... Rf2+
{[%clk 0:00:35.1]} 71. Ke6 {[%clk 0:00:19.3]} 71... Rg2 {[%clk 0:00:36]} 72. g6
{[%clk 0:00:19.5]} 72... Kb6 {[%clk 0:00:35.7]} 73. Kf7 {[%clk 0:00:19.4]} 73...
Rf2+ {[%clk 0:00:35.3]} 74. Kg7 {[%clk 0:00:19.7]} 74... Re2 {[%clk 0:00:35.8]}
75. Nf7 {[%clk 0:00:20]} 75... Rg2 {[%clk 0:00:36]} 76. Kh7 {[%clk 0:00:20.5]}
76... Rh2+ {[%clk 0:00:35.3]} 77. Kg8 {[%clk 0:00:21]} 77... Rg2 {[%clk
0:00:36.2]} 78. g7 {[%clk 0:00:21.3]} 78... Kc5 {[%clk 0:00:37.1]} 79. Kf8
{[%clk 0:00:21.4]} 79... Kc6 {[%clk 0:00:36.9]} 80. g8=Q {[%clk 0:00:21.1]}
80... Rxg8+ {[%clk 0:00:37.8]} 81. Kxg8 {[%clk 0:00:21.3]} 81... Kc5 {[%clk
0:00:38.7]} 82. Kg7 {[%clk 0:00:21.9]} 82... Kc4 {[%clk 0:00:39.6]} 83. Kf6
{[%clk 0:00:21.8]} 83... Kc3 {[%clk 0:00:40.5]} 84. Rd8 {[%clk 0:00:22]} 84...
Kc4 {[%clk 0:00:41.4]} 85. Ke6 {[%clk 0:00:22.5]} 85... Kc3 {[%clk 0:00:42.3]}
86. Ke5 {[%clk 0:00:22.5]} 86... Kc2 {[%clk 0:00:43.2]} 87. Ke4 {[%clk 0:00:23]}
87... Kc3 {[%clk 0:00:44.1]} 88. Ne5 {[%clk 0:00:22.4]} 88... Kc2 {[%clk
0:00:44.8]} 89. Ke3 {[%clk 0:00:22.8]} 89... Kb3 {[%clk 0:00:45.7]} 90. Kd4
{[%clk 0:00:22.4]} 90... Kb4 {[%clk 0:00:46.6]} 91. Rb8+ {[%clk 0:00:21.7]}
91... Ka3 {[%clk 0:00:46.6]} 92. Kc4 {[%clk 0:00:21.7]} 92... Ka2 {[%clk
0:00:46.5]} 93. Kc3 {[%clk 0:00:22.3]} 93... Ka1 {[%clk 0:00:46.6]} 94. Kc2
{[%clk 0:00:22.5]} 94... Ka2 {[%clk 0:00:46.7]} 95. Ra8# {[%clk 0:00:22.9]} 1-0

[Event "Late-Titled-Tuesday-Blitz-May-28-2024"]
[Site "Chess.com"]
[Date "2024.05.28"]
[Round "2"]
[White "ozates"]
[Black "hansen"]
[Result "0-1"]
[WhiteElo "2621"]
[BlackElo "3058"]
[TimeControl "180+1"]
[EndTime "14:19:33 PDT"]
[Termination "hansen won by resignation"]

1. e4 {[%clk 0:02:58.3]} 1... c5 {[%clk 0:02:58.5]} 2. Nf3 {[%clk 0:02:58.4]}
2... e6 {[%clk 0:02:58.3]} 3. d4 {[%clk 0:02:58.1]} 3... cxd4 {[%clk 0:02:58.9]}
4. Nxd4 {[%clk 0:02:58.9]} 4... a6 {[%clk 0:02:59.5]} 5. c4 {[%clk 0:02:58.3]}
5... Nf6 {[%clk 0:02:58.7]} 6. Nc3 {[%clk 0:02:58.1]} 6... Qc7 {[%clk
0:02:59.3]} 7. a3 {[%clk 0:02:57.8]} 7... b6 {[%clk 0:02:58.5]} 8. Be2 {[%clk
0:02:55.3]} 8... Bb7 {[%clk 0:02:58.6]} 9. f3 {[%clk 0:02:54.6]} 9... d6 {[%clk
0:02:56.3]} 10. Be3 {[%clk 0:02:54.6]} 10... Nbd7 {[%clk 0:02:57]} 11. Qd2
{[%clk 0:02:54.9]} 11... Be7 {[%clk 0:02:57.4]} 12. O-O {[%clk 0:02:55.1]} 12...
O-O {[%clk 0:02:57.8]} 13. a4 {[%clk 0:02:55.6]} 13... Rab8 {[%clk 0:02:57.3]}
14. Nb3 {[%clk 0:02:37.3]} 14... Rfc8 {[%clk 0:02:56.2]} 15. a5 {[%clk
0:02:36.4]} 15... bxa5 {[%clk 0:02:57.1]} 16. Nxa5 {[%clk 0:02:36.6]} 16... Ba8
{[%clk 0:02:57.7]} 17. b4 {[%clk 0:02:28.5]} 17... Ne5 {[%clk 0:02:42]} 18. b5
{[%clk 0:02:17.4]} 18... axb5 {[%clk 0:02:33.2]} 19. Nxb5 {[%clk 0:02:15.9]}
19... Qd7 {[%clk 0:02:21.4]} 20. Rfd1 {[%clk 0:02:02.4]} 20... Rd8 {[%clk
0:02:09.3]} 21. Nb3 {[%clk 0:01:26.1]} 21... Bc6 {[%clk 0:01:50]} 22. Ra7 {[%clk
0:01:25.5]} 22... Rb7 {[%clk 0:01:47.5]} 23. Rxb7 {[%clk 0:01:21.9]} 23... Bxb7
{[%clk 0:01:46.7]} 24. Qa5 {[%clk 0:01:16.5]} 24... Nc6 {[%clk 0:01:29.7]} 25.
Qb6 {[%clk 0:01:12.9]} 25... Qc8 {[%clk 0:01:29.4]} 26. h3 {[%clk 0:00:32.5]}
26... h6 {[%clk 0:01:28.4]} 27. Na7 {[%clk 0:00:26.1]} 27... Nxa7 {[%clk
0:01:27.2]} 28. Qxa7 {[%clk 0:00:27]} 28... Bf8 {[%clk 0:01:20.5]} 29. Na5
{[%clk 0:00:26.4]} 29... Ba8 {[%clk 0:01:18.8]} 30. Qd4 {[%clk 0:00:20.5]} 30...
d5 {[%clk 0:01:09.2]} 31. cxd5 {[%clk 0:00:19.7]} 31... exd5 {[%clk 0:01:06.3]}
32. e5 {[%clk 0:00:20.3]} 32... Nd7 {[%clk 0:01:07]} 33. Nb3 {[%clk 0:00:20.5]}
33... Qb8 {[%clk 0:01:05.2]} 34. e6 {[%clk 0:00:16.5]} 34... fxe6 {[%clk
0:01:01]} 35. Qd3 {[%clk 0:00:15.9]} 35... Ne5 {[%clk 0:00:58]} 36. Qb1 {[%clk
0:00:15]} 36... Nc4 {[%clk 0:00:53.5]} 37. Bd4 {[%clk 0:00:12.5]} 37... e5
{[%clk 0:00:52]} 38. Bf2 {[%clk 0:00:11.4]} 38... Rc8 {[%clk 0:00:46]} 39. Qa2
{[%clk 0:00:06.9]} 39... Kh8 {[%clk 0:00:38.6]} 40. Nd2 {[%clk 0:00:07.1]} 40...
Nxd2 {[%clk 0:00:36.2]} 41. Qxd2 {[%clk 0:00:08]} 41... d4 {[%clk 0:00:31.9]}
42. Bd3 {[%clk 0:00:08.2]} 42... Qb3 {[%clk 0:00:30.4]} 43. Qe2 {[%clk
0:00:08.5]} 43... Rc3 {[%clk 0:00:21.3]} 44. Rb1 {[%clk 0:00:07]} 44... Qa3
{[%clk 0:00:17.4]} 45. Be4 {[%clk 0:00:01.8]} 45... Rc1+ {[%clk 0:00:16]} 46.
Rxc1 {[%clk 0:00:01.9]} 46... Qxc1+ {[%clk 0:00:16.9]} 47. Kh2 {[%clk
0:00:02.6]} 47... Bxe4 {[%clk 0:00:15]} 48. Qxe4 {[%clk 0:00:03.3]} 48... Qc7
{[%clk 0:00:15]} 49. Bg3 {[%clk 0:00:02.7]} 49... Bd6 {[%clk 0:00:15.6]} 50. Qf5
{[%clk 0:00:02.1]} 50... Qe7 {[%clk 0:00:13.9]} 51. Qe4 {[%clk 0:00:02.4]} 51...
Qf6 {[%clk 0:00:13.6]} 52. Bh4 {[%clk 0:00:02.7]} 52... Qe6 {[%clk 0:00:12.8]}
53. Bg3 {[%clk 0:00:02.6]} 53... Qe7 {[%clk 0:00:12.5]} 54. Qf5 {[%clk 0:00:02]}
54... Kg8 {[%clk 0:00:12.3]} 55. Qc8+ {[%clk 0:00:02.2]} 55... Kf7 {[%clk
0:00:11.9]} 56. Qf5+ {[%clk 0:00:02.4]} 56... Qf6 {[%clk 0:00:12]} 57. Qd7+
{[%clk 0:00:02.7]} 57... Be7 {[%clk 0:00:08.4]} 58. Qd5+ {[%clk 0:00:03.6]}
58... Qe6 {[%clk 0:00:08.7]} 59. Qxe5 {[%clk 0:00:04.1]} 59... Qxe5 {[%clk
0:00:08.8]} 60. Bxe5 {[%clk 0:00:05]} 60... d3 {[%clk 0:00:07.8]} 61. Bc3 {[%clk
0:00:04.9]} 61... Bg5 {[%clk 0:00:08.1]} 62. g3 {[%clk 0:00:01.1]} 62... d2
{[%clk 0:00:08.5]} 63. Bxd2 {[%clk 0:00:01.5]} 63... Bxd2 {[%clk 0:00:09.4]} 64.
Kg2 {[%clk 0:00:01.9]} 64... Ke6 {[%clk 0:00:10]} 65. f4 {[%clk 0:00:02.8]}
65... Kd5 {[%clk 0:00:10.1]} 66. Kf3 {[%clk 0:00:03.7]} 66... Kd4 {[%clk
0:00:10.6]} 67. g4 {[%clk 0:00:04.4]} 67... Bc1 {[%clk 0:00:10.6]} 68. h4 {[%clk
0:00:03.9]} 68... Bd2 {[%clk 0:00:10.7]} 69. h5 {[%clk 0:00:04.1]} 69... Bc1
{[%clk 0:00:10.8]} 70. Kg3 {[%clk 0:00:03.8]} 70... Ke4 {[%clk 0:00:11.1]} 71.
f5 {[%clk 0:00:04.4]} 71... Bg5 {[%clk 0:00:11.2]} 72. Kh3 {[%clk 0:00:04.6]}
72... Kf3 {[%clk 0:00:11.5]} 0-1